fUST/lending_fUST_20240202
["ID","MTS","AMOUNT","RATE_DAILY","PERIOD"]
[313148792,1706814645926,-598.23164859,0.00027,2]
[313148793,1706814645935,-600.0,0.00027,2]
[313148794,1706814645942,-151.0,0.00027,2]
[313148795,1706814645951,-235.364499,0.00027,2]
[313148796,1706814645960,-235.364499,0.00027,2]
[313148797,1706814645968,-235.364499,0.00027,2]
[313148798,1706814645978,-235.364499,0.00027,2]
[313148799,1706814645987,-235.364499,0.00027,2]
[313148800,1706814645996,-235.364499,0.00027,2]
[313148801,1706814646004,-235.364499,0.00027,2]
[313148802,1706814646013,-235.364499,0.00027,2]
[313148803,1706814646022,-749.216733,0.00027,2]
[313148804,1706814646032,-749.216733,0.00027,2]
[313148805,1706814646042,-749.216733,0.00027,2]
[313148806,1706814646051,-749.216733,0.00027,2]
[313148807,1706814646061,-749.216733,0.00027,2]
[313148808,1706814646070,-749.216733,0.00027,2]
[313148809,1706814646078,-151.0,0.00027,2]
[313148810,1706814646087,-151.0,0.00027,2]
[313148811,1706814646096,-151.0,0.00027,2]
[313148812,1706814646105,-1153.14415566,0.00027,2]
[313148813,1706814646117,-629.83459934,0.00027,2]
[313148814,1706814646126,-1782.978755,0.00027,2]
[313148815,1706814646135,-1782.978755,0.00027,2]
[313148816,1706814646144,-1782.978755,0.00027,2]
[313148817,1706814646153,-1782.978755,0.00027,2]
[313148818,1706814646161,-1782.978753,0.00027,2]
[313148819,1706814646170,-18283.51169343,0.00027197,5]
[313148820,1706814646180,-159.865307,0.00027242,2]
[313148821,1706814646190,-188.74694,0.00027242,2]
[313148822,1706814646199,-159.865308,0.00027242,2]
[313148823,1706814646208,-184.406845,0.00027242,2]
[313148824,1706814646218,-177.681101,0.00027242,2]
[313148825,1706814646227,-1000.0,0.00027313,3]
[313148826,1706814646236,-6341.78,0.00027387,3]
[313148827,1706814646245,-187.837101,0.00027394,2]
[313148828,1706814646254,-151.725805,0.00027394,2]
[313148829,1706814646263,-151.569421,0.00027394,2]
[313148830,1706814646273,-191.898187,0.00027394,2]
[313148831,1706814646282,-151.725805,0.00027394,2]
[313148832,1706814646292,-2819.5346625,0.00027396,2]
[313148833,1706814646304,-500.0,0.00027397,2]
[313148834,1706814646313,-500.0,0.00027397,2]
[313148835,1706814646322,-501.30383825,0.00027397,2]
[313148836,1706814646330,-517.55,0.00027397,2]
[313148837,1706814646340,-500.0,0.00027397,2]
[313148838,1706814646350,-505.33797762,0.00027397,2]
[313148839,1706814646359,-504.36232672,0.00027397,2]
[313148840,1706814646368,-504.41352178,0.00027397,2]
[313148841,1706814646379,-459.55495517,0.00027397,2]
[313148842,1706814646389,-503.82449988,0.00027397,2]
[313148843,1706814646398,-500.0,0.00027397,2]
[313148844,1706814646407,-500.0,0.00027397,2]
[313148845,1706814646416,-623.6126598,0.00027397,2]
[313148846,1706814646425,-500.0,0.00027397,2]
[313148847,1706814646434,-500.0,0.00027397,2]
[313148848,1706814646443,-501.79714217,0.00027397,2]
[313148849,1706814646452,-500.0,0.00027397,2]
[313148850,1706814646461,-500.0,0.00027397,2]
[313148851,1706814646471,-500.0,0.00027397,2]
[313148852,1706814646480,-500.0,0.00027397,2]
[313148853,1706814646489,-327.94917312,0.00027397,2]
[313148854,1706814646498,-500.0,0.00027397,2]
[313148855,1706814646507,-504.17172117,0.00027397,2]
[313148856,1706814646516,-500.0,0.00027397,2]
[313148857,1706814646525,-622.94208789,0.00027397,2]
[313148858,1706814646534,-500.0,0.00027397,2]
[313148859,1706814646543,-500.0,0.00027397,2]
[313148860,1706814646552,-503.36490793,0.00027397,2]
[313148861,1706814646562,-500.0,0.00027397,2]
[313148862,1706814646571,-575.33263288,0.00027397,2]
[313148863,1706814646580,-500.0,0.00027397,2]
[313148864,1706814646589,-500.0,0.00027397,2]
[313148865,1706814646598,-2314.99,0.00027397,10]
[313148866,1706814646607,-505.17221815,0.00027397,2]
[313148867,1706814646616,-500.0,0.00027397,2]
[313148868,1706814646625,-501.84263882,0.00027397,2]
[313148869,1706814646634,-1000.0,0.00027397,2]
[313148870,1706814646643,-500.0,0.00027397,2]
[313148871,1706814646652,-500.0,0.00027397,2]
[313148872,1706814646667,-500.0,0.00027397,2]
[313148873,1706814646710,-513.0014778,0.00027397,2]
[313148874,1706814646719,-500.0,0.00027397,2]
[313148875,1706814646728,-500.0,0.00027397,2]
[313148876,1706814646737,-500.0,0.00027397,2]
[313148877,1706814646746,-500.0,0.00027397,2]
[313148878,1706814646754,-502.85877844,0.00027397,2]
[313148879,1706814646763,-500.0,0.00027397,2]
[313148880,1706814646773,-500.0,0.00027397,2]
[313148881,1706814646782,-503.16532619,0.00027397,2]
[313148882,1706814646791,-500.0,0.00027397,2]
[313148883,1706814646800,-500.0,0.00027397,2]
[313148884,1706814646810,-500.0,0.00027397,2]
[313148885,1706814646823,-500.0,0.00027397,2]
[313148886,1706814646831,-500.0,0.00027397,2]
[313148887,1706814646841,-500.0,0.00027397,2]
[313148888,1706814646850,-500.0,0.00027397,2]
[313148889,1706814646860,-500.0,0.00027397,2]
[313148890,1706814646869,-500.0,0.00027397,2]
[313148891,1706814646878,-503.88676801,0.00027397,2]
[313148892,1706814646888,-500.0,0.00027397,2]
[313148893,1706814646898,-500.0,0.00027397,2]
[313148894,1706814646907,-500.0,0.00027397,2]
[313148895,1706814646916,-500.0,0.00027397,2]
[313148896,1706814646925,-1846.7,0.00027397,2]
[313148897,1706814646935,-500.0,0.00027397,2]
[313148898,1706814646944,-510.91289782,0.00027397,2]
[313148899,1706814646953,-500.0,0.00027397,2]
[313148900,1706814646961,-155.0,0.00027397,2]
[313148901,1706814646970,-500.0,0.00027397,2]
[313148902,1706814646979,-500.0,0.00027397,2]
[313148903,1706814646988,-500.0,0.00027397,2]
[313148904,1706814646996,-500.0,0.00027397,2]
[313148905,1706814647005,-389.77919623,0.00027397,2]
[313148906,1706814647014,-500.0,0.00027397,2]
[313148907,1706814647023,-500.0,0.00027397,2]
[313148908,1706814647033,-500.0,0.00027397,2]
[313148909,1706814647042,-324.94079265,0.00027397,2]
[313148910,1706814647051,-500.0,0.00027397,2]
[313148911,1706814647060,-502.51678686,0.00027397,2]
[313148912,1706814647069,-553.54905611,0.00027397,2]
[313148913,1706814647079,-500.0,0.00027397,2]
[313148914,1706814647088,-500.0,0.00027397,2]
[313148915,1706814647097,-13435.13,0.00027397,2]
[313148916,1706814647106,-500.0,0.00027397,2]
[313148917,1706814647115,-1618.54,0.00027397,2]
[313148918,1706814647124,-500.0,0.00027397,2]
[313148919,1706814647134,-500.0,0.00027397,2]
[313148920,1706814647143,-500.0,0.00027397,2]
[313148921,1706814647152,-250.07075875,0.00027397,2]
[313148922,1706814647161,-506.15,0.00027397,2]
[313148923,1706814647170,-504.35120584,0.00027397,2]
[313148924,1706814647179,-500.0,0.00027397,2]
[313148925,1706814647188,-500.0,0.00027397,2]
[313148926,1706814647198,-504.58293086,0.00027397,2]
[313148927,1706814647207,-150.1,0.00027397,2]
[313148928,1706814647216,-160.0,0.00027397,10]
[313148929,1706814647225,-600.0,0.000275,2]
[313148930,1706814647234,-932.35604574,0.000275,4]
[313148931,1706814647243,-500.0,0.00027534,2]
[313148932,1706814647252,-500.0,0.00027671,2]
[313148933,1706814647261,-500.0,0.00027671,2]
[313148934,1706814647270,-500.0,0.00027671,2]
[313148935,1706814647366,-500.0,0.00027671,2]
[313148936,1706814647378,-500.0,0.00027671,2]
[313148937,1706814647387,-500.0,0.00027671,2]
[313148938,1706814647396,-537.66381082,0.00027671,2]
[313148939,1706814647405,-500.0,0.00027671,2]
[313148940,1706814647414,-500.0,0.00027671,2]
[313148941,1706814647423,-265.74222748,0.00027671,2]
[313148942,1706814647432,-373.70565358,0.00027671,2]
[313148943,1706814647441,-500.0,0.00027671,2]
[313148944,1706814647450,-2314.99,0.00027671,10]
[313148945,1706814647459,-500.0,0.00027671,2]
[313148946,1706814647469,-1000.0,0.00027671,2]
[313148947,1706814647479,-500.0,0.00027671,2]
[313148948,1706814647488,-500.0,0.00027671,2]
[313148949,1706814647497,-500.0,0.00027671,2]
[313148950,1706814647507,-500.0,0.00027671,2]
[313148951,1706814647516,-500.0,0.00027671,2]
[313148952,1706814647524,-505.01286985,0.00027671,2]
[313148953,1706814647534,-635.22,0.00027671,2]
[313148954,1706814647543,-500.0,0.00027671,2]
[313148955,1706814647553,-500.0,0.00027671,2]
[313148956,1706814647562,-500.0,0.00027671,2]
[313148957,1706814647572,-500.0,0.00027671,2]
[313148958,1706814647581,-500.0,0.00027671,2]
[313148959,1706814647590,-500.0,0.00027671,2]
[313148960,1706814647600,-500.0,0.00027671,2]
[313148961,1706814647609,-506.61538217,0.00027671,2]
[313148962,1706814647618,-500.0,0.00027671,2]
[313148963,1706814647627,-500.0,0.00027671,2]
[313148964,1706814647636,-504.93048454,0.00027671,2]
[313148965,1706814647645,-1846.7,0.00027671,2]
[313148966,1706814647654,-485.06,0.00027671,2]
[313148967,1706814647663,-373.48,0.00027671,2]
[313148968,1706814647672,-500.0,0.00027671,2]
[313148969,1706814647681,-500.0,0.00027671,2]
[313148970,1706814647690,-504.68330874,0.00027671,2]
[313148971,1706814647698,-500.0,0.00027671,2]
[313148972,1706814647707,-500.0,0.00027671,2]
[313148973,1706814647716,-500.0,0.00027671,2]
[313148974,1706814647725,-299.27,0.00027671,2]
[313148975,1706814647734,-500.0,0.00027671,2]
[313148976,1706814647743,-500.0,0.00027671,2]
[313148977,1706814647752,-500.0,0.00027671,2]
[313148978,1706814647761,-13435.13,0.00027671,2]
[313148979,1706814647770,-520.03,0.00027671,2]
[313148980,1706814647779,-1618.54,0.00027671,2]
[313148981,1706814647788,-500.0,0.00027671,2]
[313148982,1706814647797,-500.0,0.00027671,2]
[313148983,1706814647806,-500.0,0.00027671,2]
[313148984,1706814647815,-184.406845,0.00027696,2]
[313148985,1706814647824,-200.0,0.000278,4]
[313148986,1706814647833,-9515.44510589,0.00027855,2]
[313148987,1706814647842,-4393.92862056,0.000279,3]
[313148988,1706814647852,-33264.9211734,0.000279,2]
[313148989,1706814647862,-201.14251493,0.000279,2]
[313148990,1706814647872,-201.14251492,0.000279,2]
[313148991,1706814647881,-159.865307,0.00027923,2]
[313148992,1706814647890,-159.865308,0.00027923,2]
[313148993,1706814647900,-500.0,0.00027945,2]
[313148994,1706814647909,-500.0,0.00027945,2]
[313148995,1706814647919,-500.0,0.00027945,2]
[313148996,1706814647926,-500.0,0.00027945,2]
[313148997,1706814647936,-500.0,0.00027945,2]
[313148998,1706814647944,-2314.99,0.00027945,10]
[313148999,1706814647953,-500.0,0.00027945,2]
[313149000,1706814647962,-1000.0,0.00027945,2]
[313149001,1706814647971,-500.0,0.00027945,2]
[313149002,1706814647980,-290.44,0.00027945,2]
[313149003,1706814647990,-241.99853175,0.00027945,2]
[313149004,1706814648000,-500.0,0.00027945,2]
[313149005,1706814648009,-500.0,0.00027945,2]
[313149006,1706814648019,-500.0,0.00027945,2]
[313149007,1706814648029,-155.08,0.00027945,2]
[313149008,1706814648038,-352.86602118,0.00027945,2]
[313149009,1706814648048,-282.42,0.00027945,2]
[313149010,1706814648057,-500.0,0.00027945,2]
[313149011,1706814648067,-1846.7,0.00027945,2]
[313149012,1706814648076,-500.0,0.00027945,2]
[313149013,1706814648086,-500.0,0.00027945,2]
[313149014,1706814648095,-407.11802035,0.00027945,2]
[313149015,1706814648105,-500.0,0.00027945,2]
[313149016,1706814648114,-500.0,0.00027945,2]
[313149017,1706814648124,-13435.13,0.00027945,2]
[313149018,1706814648133,-1618.54,0.00027945,2]
[313149019,1706814648143,-178.84657327,0.00027945,2]
[313149020,1706814648152,-596.95,0.00027945,2]
[313149021,1706814648161,-192.17,0.00027945,2]
[313149022,1706814648171,-161.87340088,0.00027999,10]
[313149023,1706814648180,-155.15452586,0.00028,2]
[313149024,1706814648189,-201.20112353,0.00028,2]
[313149025,1706814648198,-260.79036861,0.00028,2]
[313149026,1706814648207,-3000.0,0.00028,2]
[313149027,1706814648217,-1565.044645,0.00028,2]
[313149028,1706814648226,-3140.63689423,0.00028,2]
[313149029,1706814648235,-2500.0,0.00028,2]
[313149030,1706814648244,-69309.84605567,0.00028,2]
[313149128,1706815831940,-185.71111237,0.00021065,2]
[313149130,1706815831950,-2819.5346625,0.00022084,2]
[313149132,1706815831959,-223.31014366,0.00022085,2]
[313149135,1706815831968,-521.15480206,0.00022085,2]
[313149137,1706815831978,-3339.55078964,0.00022085,2]
[313149139,1706815831988,-166.666667,0.00022813,2]
[313149141,1706815831997,-8759.26790315,0.00023696,2]
[313149143,1706815832009,-4479.68727357,0.00023696,2]
[313149145,1706815832020,-2651.32583508,0.00023696,2]
[313149181,1706815837998,-1235.55447597,0.00023696,2]
[313149182,1706815838053,-2347.80222901,0.00023696,2]
[313149183,1706815838109,-2376.35776166,0.00023696,2]
[313149376,1706816252023,151.00151002,0.00028566,120]
[313149395,1706816791557,151.00151002,0.00028717,120]
[313149710,1706817041461,-7973.01503453,0.00021585,2]
[313149712,1706817041470,-86.27425068,0.00021586,2]
[313149784,1706817043243,-2733.26041182,0.00021586,2]
[313149785,1706817043252,-1486.42294619,0.00021587,2]
[313149787,1706817043261,-860.48347787,0.00021596,2]
[313149789,1706817043270,-324.3359488,0.00022106,2]
[313149791,1706817043279,-247.23174153,0.00023696,2]
[313149792,1706817043288,-1828.0659992,0.00023696,2]
[313149794,1706817043298,-166.696548,0.00023806,2]
[313149796,1706817043307,-155.2017338,0.00023991,2]
[313149798,1706817043316,-304.482172,0.00024067,2]
[313149799,1706817043326,-166.666667,0.00024084,2]
[313149802,1706817043335,-3571.9574024,0.00024462,2]
[313149803,1706817043344,-499.42473756,0.0002496,5]
[313149806,1706817043354,-534.58917942,0.00025,2]
[313149808,1706817043364,-4732.83381239,0.00025,2]
[313149810,1706817043374,-1830.14346345,0.00025,2]
[313149812,1706817043383,-7137.1390739,0.00025,2]
[313149814,1706817043392,-155.00930056,0.00025395,2]
[313149816,1706817043401,-165.0,0.00025396,2]
[313149818,1706817043412,-203.505,0.00025396,2]
[313149820,1706817043420,-199.5795051,0.00026027,2]
[313149822,1706817043430,-183.06250546,0.00026595,4]
[313149824,1706817043439,-860.48347787,0.00026596,2]
[313149826,1706817043447,-578.0,0.000266,2]
[313149828,1706817043456,-5000.0,0.00026695,2]
[313149830,1706817043466,-5000.0,0.00026695,2]
[313149832,1706817043475,-9144.42974082,0.00027281,4]
[313149834,1706817043485,-7323.5,0.00027342,3]
[313149836,1706817043494,-6394.42,0.00027352,3]
[313149838,1706817043502,-1813.31780449,0.00027352,3]
[313150164,1706817141536,3137.0,0.0002887,61]
[313150165,1706817142012,3137.0,0.0002886,61]
[313150166,1706817142420,3137.0,0.0002885,61]
[313150173,1706817225494,151.00906054,0.0002981,120]
[313150192,1706817502674,2196.0,0.0002887,61]
[313150193,1706817503116,2196.0,0.0002886,61]
[313150194,1706817503700,2196.0,0.0002885,61]
[313150198,1706817568885,151.00755038,0.00028865,120]
[313150210,1706817861572,1537.0,0.0002887,61]
[313150211,1706817861997,1537.0,0.0002886,61]
[313150212,1706817862436,1537.0,0.0002885,61]
[313150230,1706818046637,151.00906054,0.0002897,120]
[313150303,1706818232352,-155.00930056,0.00020618,2]
[313150304,1706818232361,-1486.42294619,0.00020618,2]
[313150306,1706818232371,-304.482172,0.00020619,2]
[313150308,1706818232380,-7973.01503453,0.00021012,2]
[313150310,1706818232389,-2819.5346625,0.00021013,2]
[313150312,1706818232398,-680.01303789,0.00021014,2]
[313150314,1706818232407,-260.75329303,0.00021015,2]
[313150316,1706818232416,-164.3749518,0.00021047,2]
[313150319,1706818232426,-164.93249697,0.00022052,2]
[313150321,1706818232434,-2107.2301694,0.0002215,2]
[313150323,1706818232443,-650.48898734,0.00022152,2]
[313150324,1706818232455,-915.83813876,0.00022152,2]
[313150379,1706818238796,-1339.12430165,0.00022152,2]
[313150539,1706818244138,-291.89020851,0.00022152,2]
[313150553,1706818244198,-2649.90124473,0.00022152,2]
[313150628,1706818244545,-2226.02284046,0.00022152,2]
[313150631,1706818244559,-1656.01035399,0.00022152,2]
[313150642,1706818244609,-1603.44210811,0.00022152,2]
[313150707,1706818246476,-24235.36963238,0.00022152,2]
[313150708,1706818246485,-6232.3737139,0.00022152,2]
[313150709,1706818246495,-1261.69149652,0.0002313,2]
[313150710,1706818246505,-200.0,0.00023131,7]
[313150711,1706818246515,-163.53362672,0.00023991,2]
[313150712,1706818246524,-692.06758482,0.00023991,2]
[313150713,1706818246533,-155.00930056,0.00024624,4]
[313150714,1706818246543,-8630.82,0.00024987,3]
[313150715,1706818246554,-7192.35,0.00024987,3]
[313150716,1706818246564,-5993.63,0.00024987,3]
[313150717,1706818246574,-4994.69,0.00024987,3]
[313150718,1706818246586,-155.0217017,0.00024996,2]
[313150719,1706818246596,-260.75329303,0.00024996,2]
[313150720,1706818246605,-33467.47354353,0.00024997,2]
[313150721,1706818246614,-1000.0,0.00024997,2]
[313150722,1706818246624,-1000.0,0.00024997,2]
[313150723,1706818246633,-1000.0,0.00024997,2]
[313150724,1706818246642,-1000.0,0.00024997,2]
[313150725,1706818246651,-1000.0,0.00024997,2]
[313150726,1706818246660,-1000.0,0.00024997,2]
[313150727,1706818246669,-1000.0,0.00024997,2]
[313150728,1706818246678,-1000.0,0.00024997,2]
[313150729,1706818246687,-1000.0,0.00024997,2]
[313150730,1706818246696,-1000.0,0.00024997,2]
[313150731,1706818246705,-1000.0,0.00024997,2]
[313150732,1706818246714,-1206.82200149,0.00025,2]
[313150733,1706818246723,-534.58917942,0.00025,2]
[313150734,1706818246732,-1830.14346345,0.00025,2]
[313150735,1706818246741,-4732.83381239,0.00025,2]
[313150736,1706818246750,-7137.1390739,0.00025,2]
[313150737,1706818246759,-9276.78344957,0.00025525,2]
[313150738,1706818246769,-160.12041175,0.00025623,2]
[313150739,1706818246778,-171.95327391,0.00025623,2]
[313150740,1706818246788,-235.56020887,0.00025623,2]
[313150741,1706818246797,-4013.85201876,0.00025623,2]
[313150742,1706818246807,-1265.96906703,0.00025623,2]
[313150743,1706818246816,-166.92639514,0.00025623,2]
[313150744,1706818246825,-261.02920205,0.00025623,2]
[313150745,1706818246835,-19687.41023008,0.00025623,2]
[313150746,1706818246845,-155.37742919,0.00025623,2]
[313150747,1706818246854,-274.95522647,0.00025624,2]
[313150748,1706818246863,-50000.0,0.00025625,2]
[313150749,1706818246872,-283.04717096,0.00025992,5]
[313150750,1706818246882,-153.0,0.00026027,2]
[313150751,1706818246891,-199.6652776,0.00026027,2]
[313150752,1706818246900,-306.0,0.00026027,2]
[313150753,1706818246910,-153.0,0.00026027,2]
[313150754,1706818246919,-396.4748634,0.00026027,2]
[313150755,1706818246929,-199.6652776,0.00026027,2]
[313150756,1706818246938,-183.06250546,0.000265,4]
[313150757,1706818246948,-199.6652776,0.00026578,2]
[313150758,1706818246958,-156.6260754,0.00026578,2]
[313150759,1706818246967,-306.0,0.00026578,2]
[313150760,1706818246977,-325.9281118,0.00026578,2]
[313150761,1706818246986,-5000.0,0.00026717,2]
[313150762,1706818246995,-286.82782596,0.0002676,2]
[313150763,1706818247004,-199.6652776,0.00026849,2]
[313150764,1706818247013,-153.0,0.00026849,2]
[313150765,1706818247022,-199.6652776,0.00026849,2]
[313150766,1706818247031,-199.6652776,0.00026849,2]
[313150767,1706818247041,-431.4910111,0.00026849,2]
[313150768,1706818247050,-2993.97030882,0.00026998,2]
[313150771,1706818324267,1076.0,0.0002887,61]
[313150772,1706818324694,1076.0,0.0002886,61]
[313150773,1706818325130,1076.0,0.0002885,61]
[313150784,1706818702645,753.0,0.0002887,61]
[313150785,1706818703092,753.0,0.0002886,61]
[313150786,1706818703520,753.0,0.0002885,61]
[313150804,1706819061163,527.0,0.0002887,61]
[313150805,1706819061608,527.0,0.0002886,61]
[313150806,1706819062067,527.0,0.0002885,61]
[313150820,1706819421587,369.0,0.0002887,61]
[313150821,1706819422019,369.0,0.0002886,61]
[313150822,1706819422474,369.0,0.0002885,61]
[313150884,1706819438630,-260.75329303,0.00022121,2]
[313150886,1706819438640,-739.24670697,0.00022122,2]
[313150899,1706819438756,-747.17623922,0.00022122,2]
[313150901,1706819438765,-522.97720775,0.00022123,2]
[313150903,1706819438775,-155.01085076,0.00022152,4]
[313150905,1706819438784,-10134.43366277,0.00022203,2]
[313150907,1706819438794,-2581.30367966,0.00022237,2]
[313150909,1706819438803,-281.29034371,0.00023525,2]
[313150911,1706819438813,-450.72174603,0.00023991,2]
[313150913,1706819438823,-657.67105543,0.00024995,2]
[313150915,1706819438835,-275.14874851,0.00024995,2]
[313150917,1706819438844,-157.83895982,0.00024995,2]
[313150919,1706819438853,-2200.02464432,0.00024996,2]
[313150921,1706819438863,-7137.1390739,0.00025,2]
[313150923,1706819438872,-4732.83381239,0.00025,2]
[313150924,1706819438882,-534.58917942,0.00025505,2]
[313150926,1706819438891,-1830.14346345,0.00025506,2]
[313150928,1706819438901,-9197.63344967,0.00025525,2]
[313150930,1706819438910,-158.44234267,0.00025965,2]
[313150932,1706819438919,-850.42196847,0.00026367,2]
[313150934,1706819438929,-183.06250546,0.00026739,4]
[313150936,1706819438938,-5000.0,0.0002674,2]
[313150938,1706819438947,-306.9764062,0.00026849,2]
[313150940,1706819438955,-2181.01,0.00026986,3]
[313150942,1706819438966,-3465.86,0.00026986,3]
[313150944,1706819438974,-1712.2416511,0.00026986,3]
[313151181,1706819441903,-2167.86801024,0.00022121,2]
[313151292,1706819446579,-260.67799851,0.00022121,2]
[313151293,1706819446636,-1323.10423826,0.00022121,2]
[313151294,1706819446645,-153.02410415,0.00026988,3]
[313151308,1706819782625,258.0,0.0002887,61]
[313151309,1706819783155,258.0,0.0002886,61]
[313151310,1706819783595,258.0,0.0002885,61]
[313151320,1706820141444,181.0,0.0002887,61]
[313151321,1706820141887,181.0,0.0002886,61]
[313151322,1706820142366,181.0,0.0002885,61]
[313151355,1706820502782,150.5,0.0002887,61]
[313151356,1706820503053,150.5,0.0002886,61]
[313151357,1706820503530,150.5,0.0002885,61]
[313151418,1706820631691,-155.01085076,0.00022191,2]
[313151420,1706820631701,-155.20549979,0.00022192,2]
[313151422,1706820631710,-1508.74510145,0.00022193,2]
[313151520,1706820637785,-2442.86870225,0.00022192,2]
[313151569,1706820638240,-330.28231789,0.00022192,2]
[313151645,1706820641031,-522.97720775,0.00022191,2]
[313151647,1706820641040,-3891.13351853,0.00022192,2]
[313151649,1706820641052,-8022.17905219,0.00022192,2]
[313151652,1706820641064,-959.14859496,0.00022192,2]
[313151654,1706820641074,-18387.32250414,0.00022193,2]
[313151656,1706820641083,-1486.42294619,0.00022194,2]
[313151658,1706820641092,-311.61868569,0.00022234,2]
[313151660,1706820641101,-867.87670961,0.00022249,2]
[313151661,1706820641113,-173.01689621,0.00023991,2]
[313151664,1706820641122,-403.50201586,0.00023991,2]
[313151666,1706820641132,-155.00465014,0.00024296,4]
[313151668,1706820641141,-309.95899814,0.00024886,2]
[313151669,1706820641150,-534.58917942,0.00025,2]
[313151671,1706820641160,-7137.1390739,0.00025614,2]
[313151673,1706820641169,-815.37579164,0.00025615,2]
[313151675,1706820641184,-3917.45802075,0.00025615,2]
[313151677,1706820641194,-1830.14346345,0.00025616,2]
[313151679,1706820641203,-153.0,0.00026027,2]
[313151681,1706820641212,-153.0,0.00026027,2]
[313151683,1706820641221,-113.95951741,0.00026078,2]
[313151715,1706820643753,-3491.54272741,0.00022191,2]
[313151717,1706820643763,-1276.51727259,0.00022191,2]
[313151751,1706820645825,-19.19949759,0.00022191,2]
[313151752,1706820645834,-39.04048259,0.00026078,2]
[313151753,1706820645843,-153.0,0.00026078,2]
[313151754,1706820645854,-306.0,0.00026178,2]
[313151755,1706820645864,-153.0,0.00026178,2]
[313151756,1706820645873,-306.0,0.00026178,2]
[313151757,1706820645882,-306.0,0.00026178,2]
[313151758,1706820645891,-153.0,0.00026178,2]
[313151759,1706820645900,-154.2824162,0.00026178,2]
[313151760,1706820645910,-183.06250546,0.000265,4]
[313151761,1706820645919,-888.36861211,0.00026513,2]
[313151762,1706820645931,-6767.93762843,0.00026513,2]
[313151763,1706820645940,-153.0,0.00026849,2]
[313151764,1706820645949,-153.0,0.00026849,2]
[313151765,1706820645958,-153.0,0.00026849,2]
[313151766,1706820645968,-2102.54555619,0.00026986,3]
[313151767,1706820645979,-2038.97444381,0.00026986,3]
[313151768,1706820645988,-221.26638139,0.00026995,2]
[313151769,1706820645997,-2107.2301694,0.00026996,2]
[313151770,1706820646007,-294.56411098,0.00026996,2]
[313151771,1706820646016,-1197.09254656,0.00026996,2]
[313151772,1706820646026,-260.45211495,0.00026996,2]
[313151773,1706820646035,-1737.14634237,0.00026996,2]
[313151774,1706820646044,-590.12981611,0.00026996,2]
[313151775,1706820646054,-1767.4270621,0.00026996,2]
[313151776,1706820646063,-242.7024983,0.00026996,2]
[313151777,1706820646072,-169.148423,0.00026996,2]
[313151778,1706820646081,-395.7564339,0.00026996,2]
[313151779,1706820646090,-277.17028051,0.00026996,2]
[313151780,1706820646100,-177.56626754,0.00026996,2]
[313151781,1706820646109,-166.35364662,0.00026996,2]
[313151782,1706820646118,-155.55930946,0.00026996,2]
[313151783,1706820646127,-640.83333091,0.00026996,2]
[313151784,1706820646136,-179.10169076,0.00026996,2]
[313151785,1706820646145,-156.00571469,0.00026996,2]
[313151786,1706820646154,-155.08136144,0.00026997,2]
[313151787,1706820646163,-155.84032299,0.00026997,2]
[313151788,1706820646173,-259.35434603,0.00026997,2]
[313151789,1706820646185,-293.58712786,0.00026997,2]
[313151790,1706820646194,-34.3422877,0.00026997,2]
[313151791,1706820646206,-121.01361643,0.00026997,2]
[313151792,1706820646215,-328.54653112,0.00026997,2]
[313151793,1706820646225,-12580.04304587,0.00026997,2]
[313151800,1706820861085,150.5,0.0002887,61]
[313151801,1706820861524,150.5,0.0002886,61]
[313151802,1706820861951,150.5,0.0002885,61]